[Event "Titled Tuesday Blitz June 20 Late 2023"]
[White "De La Villa Garcia, Jesus Maria"]
[Black "jasardo"]
[WhiteFideId "2200040"]
[WhiteElo "2536"]
[BlackElo "2763"]
[Result "0-1"]
[Round "2"]
[TimeControl "180+2"]
[Date "2023.06.20"]
[WhiteClock "0:00:00"]
[BlackClock "0:00:08"]
[Board "55"]

1. c4 {[%clk 0:03:00]}  e5 {[%clk 0:02:57]} 2. Nc3 {[%clk 0:03:01]}  Bb4 {[%clk 0:02:50]} 3. Nd5 {[%clk 0:03:00]}  Be7 {[%clk 0:02:49]} 4. d4 {[%clk 0:03:00]}  exd4 {[%clk 0:02:50]} 5. Qxd4 {[%clk 0:03:01]}  Nf6 {[%clk 0:02:50]} 6. Nxe7 {[%clk 0:02:58]}  Qxe7 {[%clk 0:02:51]} 7. Bg5 {[%clk 0:02:58]}  Nc6 {[%clk 0:02:51]} 8. Qc3 {[%clk 0:02:57]}  d6 {[%clk 0:02:50]} 9. Nf3 {[%clk 0:02:56]}  Be6 {[%clk 0:02:39]} 10. e3 {[%clk 0:02:55]}  O-O-O {[%clk 0:02:37]} 11. Bxf6 {[%clk 0:02:55]}  gxf6 {[%clk 0:02:33]} 12. Be2 {[%clk 0:02:49]}  Rhg8 {[%clk 0:02:32]} 13. g3 {[%clk 0:02:40]}  d5 {[%clk 0:02:32]} 14. O-O {[%clk 0:02:39]}  dxc4 {[%clk 0:02:18]} 15. Bxc4 {[%clk 0:02:40]}  Bh3 {[%clk 0:02:15]} 16. Rfd1 {[%clk 0:02:38]}  Qe4 {[%clk 0:02:12]} 17. Be2 {[%clk 0:02:33]}  Ne5 {[%clk 0:02:10]} 18. Rxd8+ {[%clk 0:02:24]}  Rxd8 {[%clk 0:02:11]} 19. Ne1 {[%clk 0:02:20]}  Bd7 {[%clk 0:02:01]} 20. Bf1 {[%clk 0:02:12]}  Bc6 {[%clk 0:01:52]} 21. Bg2 {[%clk 0:02:10]}  Qa4 {[%clk 0:01:49]} 22. Bxc6 {[%clk 0:02:06]}  Qxc6 {[%clk 0:01:35]} 23. Qxc6 {[%clk 0:02:06]}  bxc6 {[%clk 0:01:36]} 24. Rc1 {[%clk 0:02:06]}  Rd2 {[%clk 0:01:33]} 25. Rb1 {[%clk 0:01:52]}  Ng4 {[%clk 0:01:26]} 26. Rc1 {[%clk 0:01:19]}  Rxb2 {[%clk 0:00:53]} 27. Rc2 {[%clk 0:01:02]}  Rb1 {[%clk 0:00:48]} 28. Kf1 {[%clk 0:01:00]}  Nxh2+ {[%clk 0:00:31]} 29. Ke2 {[%clk 0:01:01]}  Ng4 {[%clk 0:00:30]} 30. Rxc6 {[%clk 0:01:00]}  Rb2+ {[%clk 0:00:24]} 31. Rc2 {[%clk 0:01:00]}  Rxc2+ {[%clk 0:00:23]} 32. Nxc2 {[%clk 0:01:00]}  c5 {[%clk 0:00:23]} 33. Kf3 {[%clk 0:01:00]}  Ne5+ {[%clk 0:00:20]} 34. Ke4 {[%clk 0:01:01]}  Kd7 {[%clk 0:00:20]} 35. f4 {[%clk 0:00:53]}  Ng4 {[%clk 0:00:11]} 36. Kd5 {[%clk 0:00:50]}  Nf2 {[%clk 0:00:09]} 37. Na3 {[%clk 0:00:32]}  Nd1 {[%clk 0:00:06]} 38. Nc4 {[%clk 0:00:33]}  h5 {[%clk 0:00:03]} 39. Kxc5 {[%clk 0:00:31]}  Ke6 {[%clk 0:00:04]} 40. e4 {[%clk 0:00:29]}  Nf2 {[%clk 0:00:04]} 41. f5+ {[%clk 0:00:26]}  Ke7 {[%clk 0:00:04]} 42. Kd5 {[%clk 0:00:26]}  Nh1 {[%clk 0:00:04]} 43. Nd2 {[%clk 0:00:17]}  Nxg3 {[%clk 0:00:04]} 44. Nf3 {[%clk 0:00:18]}  Ne2 {[%clk 0:00:03]} 45. Kc4 {[%clk 0:00:14]}  Nf4 {[%clk 0:00:03]} 46. a4 {[%clk 0:00:13]}  Kd6 {[%clk 0:00:03]} 47. a5 {[%clk 0:00:13]}  Kc7 {[%clk 0:00:04]} 48. Kb5 {[%clk 0:00:13]}  Kb7 {[%clk 0:00:04]} 49. a6+ {[%clk 0:00:13]}  Kc7 {[%clk 0:00:05]} 50. Kc5 {[%clk 0:00:14]}  Nd3+ {[%clk 0:00:05]} 51. Kb5 {[%clk 0:00:14]}  Ne5 {[%clk 0:00:05]} 52. Nh4 {[%clk 0:00:11]}  Nc6 {[%clk 0:00:05]} 53. Ng2 {[%clk 0:00:08]}  Nd4+ {[%clk 0:00:05]} 54. Kc5 {[%clk 0:00:08]}  Nf3 {[%clk 0:00:05]} 55. Nf4 {[%clk 0:00:08]}  h4 {[%clk 0:00:05]} 56. Nd5+ {[%clk 0:00:09]}  Kd7 {[%clk 0:00:05]} 57. Nxf6+ {[%clk 0:00:09]}  Kd8 {[%clk 0:00:06]} 58. Ng4 {[%clk 0:00:10]}  h3 {[%clk 0:00:06]} 59. Kc6 {[%clk 0:00:10]}  Ne5+ {[%clk 0:00:04]} 60. Nxe5 {[%clk 0:00:01]}  h2 {[%clk 0:00:04]} 61. Nxf7+ {[%clk 0:00:01]}  Ke7 {[%clk 0:00:05]} 62. Ne5 {[%clk 0:00:01]}  h1=Q {[%clk 0:00:06]} 63. Kd5 {[%clk 0:00:01]}  Qd1+ {[%clk 0:00:06]} 64. Kc5 {[%clk 0:00:01]}  Qa4 {[%clk 0:00:06]} 65. Kd5 {[%clk 0:00:02]}  Qxa6 {[%clk 0:00:06]} 66. Nc6+ {[%clk 0:00:03]}  Kf6 {[%clk 0:00:06]} 67. Nd4 {[%clk 0:00:04]}  Qb7+ {[%clk 0:00:06]} 68. Nc6 {[%clk 0:00:03]}  Qd7+ {[%clk 0:00:06]} 69. Kc5 {[%clk 0:00:03]}  Qd1 {[%clk 0:00:06]} 70. Nd4 {[%clk 0:00:02]}  a5 {[%clk 0:00:05]} 71. Kd5 {[%clk 0:00:03]}  a4 {[%clk 0:00:05]} 72. e5+ {[%clk 0:00:03]}  Kg5 {[%clk 0:00:06]} 73. e6 {[%clk 0:00:03]}  Kf6 {[%clk 0:00:06]} 74. Kc5 {[%clk 0:00:02]}  a3 {[%clk 0:00:07]} 75. Nc6 {[%clk 0:00:01]}  a2 {[%clk 0:00:07]} 76. e7 {[%clk 0:00:02]}  Qc1+ {[%clk 0:00:07]} 77. Kd6 {[%clk 0:00:02]}  Qd2+ {[%clk 0:00:07]} 78. Kc7 {[%clk 0:00:03]}  Qe2 {[%clk 0:00:07]} 79. Kd7 {[%clk 0:00:02]}  a1=Q {[%clk 0:00:08]} 80. e8=Q {[%clk 0:00:03]}  Qad1+ {[%clk 0:00:08]} 81. Kc7 {[%clk 0:00:00]}  Qxe8 {[%clk 0:00:08]} 0-1


[Site "https://www.chess.com"]

[Event "Titled Tuesday Blitz June 20 Late 2023"]
[White "Bryakin, Mikhail"]
[Black "Nasir, Zehn"]
[WhiteFideId "4165314"]
[BlackFideId "2613239"]
[WhiteElo "2464"]
[BlackElo "1993"]
[Result "1-0"]
[Round "2"]
[TimeControl "180+2"]
[Date "2023.06.20"]
[WhiteClock "0:00:46"]
[BlackClock "0:00:00"]
[Board "56"]

1. e4 {[%clk 0:03:00]}  c6 {[%clk 0:02:59]} 2. d4 {[%clk 0:03:00]}  d5 {[%clk 0:03:00]} 3. e5 {[%clk 0:03:01]}  Bf5 {[%clk 0:03:00]} 4. h4 {[%clk 0:03:00]}  h5 {[%clk 0:03:00]} 5. Bd3 {[%clk 0:03:00]}  Bxd3 {[%clk 0:03:00]} 6. Qxd3 {[%clk 0:03:01]}  e6 {[%clk 0:03:01]} 7. Nf3 {[%clk 0:03:00]}  Ne7 {[%clk 0:02:57]} 8. a4 {[%clk 0:03:00]}  Qb6 {[%clk 0:02:52]} 9. Nbd2 {[%clk 0:02:54]}  Qa6 {[%clk 0:02:51]} 10. c4 {[%clk 0:02:53]}  Nd7 {[%clk 0:02:51]} 11. b3 {[%clk 0:02:51]}  Nf5 {[%clk 0:02:49]} 12. O-O {[%clk 0:02:49]}  Be7 {[%clk 0:02:47]} 13. g3 {[%clk 0:02:40]}  O-O {[%clk 0:02:43]} 14. Ba3 {[%clk 0:02:39]}  Rfd8 {[%clk 0:02:36]} 15. Bxe7 {[%clk 0:02:36]}  Nxe7 {[%clk 0:02:35]} 16. Qe3 {[%clk 0:02:31]}  Nf5 {[%clk 0:02:26]} 17. Qg5 {[%clk 0:02:29]}  g6 {[%clk 0:02:23]} 18. g4 {[%clk 0:02:26]}  hxg4 {[%clk 0:02:23]} 19. Qxg4 {[%clk 0:02:27]}  Ng7 {[%clk 0:01:59]} 20. Rfc1 {[%clk 0:02:23]}  Rac8 {[%clk 0:01:56]} 21. Nf1 {[%clk 0:02:16]}  dxc4 {[%clk 0:01:51]} 22. bxc4 {[%clk 0:02:10]}  c5 {[%clk 0:01:51]} 23. d5 {[%clk 0:02:10]}  Nb6 {[%clk 0:01:44]} 24. d6 {[%clk 0:02:04]}  Nd7 {[%clk 0:01:35]} 25. Ng3 {[%clk 0:02:02]}  Qc6 {[%clk 0:01:13]} 26. a5 {[%clk 0:02:01]}  b5 {[%clk 0:01:12]} 27. axb6 {[%clk 0:02:01]}  axb6 {[%clk 0:01:12]} 28. Rab1 {[%clk 0:01:57]}  Ra8 {[%clk 0:01:08]} 29. h5 {[%clk 0:01:54]}  Nf8 {[%clk 0:01:08]} 30. hxg6 {[%clk 0:01:44]}  Nxg6 {[%clk 0:01:08]} 31. Ne4 {[%clk 0:01:44]}  Ra3 {[%clk 0:01:02]} 32. Ra1 {[%clk 0:01:32]}  Rxf3 {[%clk 0:00:50]} 33. Qxf3 {[%clk 0:01:29]}  Nxe5 {[%clk 0:00:49]} 34. Nf6+ {[%clk 0:01:28]}  Kf8 {[%clk 0:00:47]} 35. Qxc6 {[%clk 0:01:27]}  Nxc6 {[%clk 0:00:48]} 36. Rd1 {[%clk 0:01:27]}  Nd4 {[%clk 0:00:45]} 37. Kg2 {[%clk 0:01:12]}  Rxd6 {[%clk 0:00:43]} 38. Ne4 {[%clk 0:01:13]}  Rd8 {[%clk 0:00:41]} 39. Ra6 {[%clk 0:01:14]}  Nh5 {[%clk 0:00:34]} 40. Rxb6 {[%clk 0:01:09]}  Nf4+ {[%clk 0:00:34]} 41. Kf1 {[%clk 0:01:10]}  Kg7 {[%clk 0:00:29]} 42. Nxc5 {[%clk 0:01:09]}  Rh8 {[%clk 0:00:27]} 43. f3 {[%clk 0:01:00]}  Rh1+ {[%clk 0:00:25]} 44. Kf2 {[%clk 0:01:01]}  Rxd1 {[%clk 0:00:26]} 45. Ke3 {[%clk 0:01:02]}  Nfe2 {[%clk 0:00:23]} 46. Nd3 {[%clk 0:01:00]}  Rf1 {[%clk 0:00:21]} 47. Ne5 {[%clk 0:00:56]}  Rc1 {[%clk 0:00:19]} 48. Rb7 {[%clk 0:00:52]}  Kf6 {[%clk 0:00:18]} 49. f4 {[%clk 0:00:51]}  Rc3+ {[%clk 0:00:13]} 50. Ke4 {[%clk 0:00:45]}  Ng3+ {[%clk 0:00:00]} 51. Kxd4 {[%clk 0:00:46]} 1-0


[Site "https://www.chess.com"]

[Event "Titled Tuesday Blitz June 20 Late 2023"]
[White "FoxOnTheRun97"]
[Black "Mahdavi, Reza"]
[BlackFideId "12595926"]
[WhiteElo "2533"]
[BlackElo "2395"]
[Result "0-1"]
[Round "2"]
[TimeControl "180+2"]
[Date "2023.06.20"]
[WhiteClock "0:00:06"]
[BlackClock "0:01:32"]
[Board "57"]

1. Nf3 {[%clk 0:03:00]}  Nf6 {[%clk 0:02:59]} 2. g3 {[%clk 0:03:00]}  g6 {[%clk 0:02:57]} 3. Bg2 {[%clk 0:03:01]}  Bg7 {[%clk 0:02:57]} 4. O-O {[%clk 0:02:59]}  O-O {[%clk 0:02:58]} 5. c4 {[%clk 0:02:58]}  d6 {[%clk 0:02:58]} 6. d3 {[%clk 0:02:58]}  e5 {[%clk 0:02:53]} 7. e4 {[%clk 0:02:57]}  Nc6 {[%clk 0:02:52]} 8. h3 {[%clk 0:02:56]}  h6 {[%clk 0:02:51]} 9. Be3 {[%clk 0:02:54]}  Be6 {[%clk 0:02:52]} 10. Qd2 {[%clk 0:02:51]}  Kh7 {[%clk 0:02:52]} 11. b4 {[%clk 0:02:51]}  Qd7 {[%clk 0:02:52]} 12. Kh2 {[%clk 0:02:49]}  Ne7 {[%clk 0:02:53]} 13. Nc3 {[%clk 0:02:40]}  c6 {[%clk 0:02:53]} 14. b5 {[%clk 0:02:32]}  Ne8 {[%clk 0:02:47]} 15. Nh4 {[%clk 0:01:43]}  g5 {[%clk 0:02:40]} 16. Nf3 {[%clk 0:01:43]}  f5 {[%clk 0:02:40]} 17. exf5 {[%clk 0:01:42]}  Nxf5 {[%clk 0:02:41]} 18. Rab1 {[%clk 0:01:37]}  Nf6 {[%clk 0:02:19]} 19. Bxg5 {[%clk 0:01:15]}  hxg5 {[%clk 0:02:16]} 20. Nxg5+ {[%clk 0:01:15]}  Kh8 {[%clk 0:02:13]} 21. bxc6 {[%clk 0:01:12]}  bxc6 {[%clk 0:02:14]} 22. Nxe6 {[%clk 0:01:08]}  Qxe6 {[%clk 0:02:15]} 23. Bxc6 {[%clk 0:01:07]}  Rab8 {[%clk 0:02:09]} 24. Ne4 {[%clk 0:01:01]}  Nd4 {[%clk 0:02:01]} 25. Nxf6 {[%clk 0:00:57]}  Nxc6 {[%clk 0:01:58]} 26. Ne4 {[%clk 0:00:38]}  Nd4 {[%clk 0:01:54]} 27. Kg2 {[%clk 0:00:20]}  Bh6 {[%clk 0:01:51]} 28. Rxb8 {[%clk 0:00:16]}  Rxb8 {[%clk 0:01:49]} 29. Qd1 {[%clk 0:00:13]}  Qg6 {[%clk 0:01:36]} 30. h4 {[%clk 0:00:09]}  Rb2 {[%clk 0:01:32]} 31. a4 {[%clk 0:00:08]}  Nf5 {[%clk 0:01:32]} 32. Qf3 {[%clk 0:00:06]}  Nxh4+ {[%clk 0:01:32]} 0-1


[Site "https://www.chess.com"]

[Event "Titled Tuesday Blitz June 20 Late 2023"]
[White "Nazari, Arad"]
[Black "Krsnik Cohar, Ivan Vihor"]
[WhiteFideId "12577324"]
[BlackFideId "14520044"]
[WhiteElo "2175"]
[BlackElo "2414"]
[Result "1-0"]
[Round "2"]
[TimeControl "180+2"]
[Date "2023.06.20"]
[WhiteClock "0:00:15"]
[BlackClock "0:00:00"]
[Board "58"]

1. e4 {[%clk 0:03:00]}  c5 {[%clk 0:03:00]} 2. Nf3 {[%clk 0:03:00]}  g6 {[%clk 0:03:00]} 3. d4 {[%clk 0:02:58]}  cxd4 {[%clk 0:03:01]} 4. Qxd4 {[%clk 0:02:58]}  Nf6 {[%clk 0:03:01]} 5. Nc3 {[%clk 0:02:59]}  Nc6 {[%clk 0:03:01]} 6. Qa4 {[%clk 0:03:00]}  d6 {[%clk 0:03:01]} 7. e5 {[%clk 0:03:00]}  dxe5 {[%clk 0:03:02]} 8. Nxe5 {[%clk 0:03:01]}  Bd7 {[%clk 0:03:03]} 9. Nxd7 {[%clk 0:03:01]}  Qxd7 {[%clk 0:03:03]} 10. Bb5 {[%clk 0:03:01]}  Bg7 {[%clk 0:03:03]} 11. O-O {[%clk 0:03:01]}  O-O {[%clk 0:03:02]} 12. Be3 {[%clk 0:02:58]}  a6 {[%clk 0:03:02]} 13. Bxc6 {[%clk 0:02:54]}  Qxc6 {[%clk 0:03:03]} 14. Qxc6 {[%clk 0:02:54]}  bxc6 {[%clk 0:03:03]} 15. Bd4 {[%clk 0:02:55]}  Nd5 {[%clk 0:03:02]} 16. Bxg7 {[%clk 0:02:51]}  Kxg7 {[%clk 0:03:01]} 17. Na4 {[%clk 0:02:48]}  Rfd8 {[%clk 0:02:53]} 18. a3 {[%clk 0:02:40]}  Rd6 {[%clk 0:02:44]} 19. Rfe1 {[%clk 0:02:40]}  e6 {[%clk 0:02:25]} 20. Re4 {[%clk 0:02:37]}  Rad8 {[%clk 0:02:08]} 21. g3 {[%clk 0:02:32]}  h5 {[%clk 0:01:59]} 22. Nc5 {[%clk 0:02:27]}  Nc7 {[%clk 0:01:43]} 23. Rc4 {[%clk 0:02:13]}  a5 {[%clk 0:01:40]} 24. Nb7 {[%clk 0:02:07]}  Rd1+ {[%clk 0:01:40]} 25. Rxd1 {[%clk 0:02:08]}  Rxd1+ {[%clk 0:01:41]} 26. Kg2 {[%clk 0:02:09]}  Rb1 {[%clk 0:01:16]} 27. b3 {[%clk 0:02:06]}  Rb2 {[%clk 0:00:56]} 28. Nxa5 {[%clk 0:01:57]}  Nb5 {[%clk 0:00:54]} 29. a4 {[%clk 0:01:51]}  Na3 {[%clk 0:00:54]} 30. Rxc6 {[%clk 0:01:51]}  Nxc2 {[%clk 0:00:54]} 31. Rc3 {[%clk 0:01:46]}  Kf6 {[%clk 0:00:45]} 32. Nc6 {[%clk 0:01:37]}  g5 {[%clk 0:00:45]} 33. h3 {[%clk 0:01:32]}  g4 {[%clk 0:00:44]} 34. hxg4 {[%clk 0:01:32]}  hxg4 {[%clk 0:00:45]} 35. a5 {[%clk 0:01:24]}  Ra2 {[%clk 0:00:40]} 36. b4 {[%clk 0:01:18]}  Ne1+ {[%clk 0:00:39]} 37. Kf1 {[%clk 0:01:18]}  Nf3 {[%clk 0:00:37]} 38. b5 {[%clk 0:01:16]}  Nd2+ {[%clk 0:00:21]} 39. Kg2 {[%clk 0:01:08]}  Ne4 {[%clk 0:00:19]} 40. Rc4 {[%clk 0:01:08]}  Kf5 {[%clk 0:00:13]} 41. Rxe4 {[%clk 0:00:22]}  Kxe4 {[%clk 0:00:13]} 42. a6 {[%clk 0:00:23]}  Ra4 {[%clk 0:00:03]} 43. a7 {[%clk 0:00:14]}  Kd5 {[%clk 0:00:00]} 44. Nb4+ {[%clk 0:00:15]} 1-0


[Site "https://www.chess.com"]

[Event "Titled Tuesday Blitz June 20 Late 2023"]
[White "Deng, Henry"]
[Black "Yuan, Qingyu"]
[WhiteFideId "30965454"]
[BlackFideId "8609772"]
[WhiteElo "2529"]
[BlackElo "2359"]
[Result "1/2-1/2"]
[Round "2"]
[TimeControl "180+2"]
[Date "2023.06.20"]
[WhiteClock "0:00:30"]
[BlackClock "0:00:23"]
[Board "59"]

1. e4 {[%clk 0:03:00]}  e5 {[%clk 0:03:00]} 2. Nf3 {[%clk 0:02:59]}  Nc6 {[%clk 0:03:01]} 3. d4 {[%clk 0:03:00]}  exd4 {[%clk 0:03:01]} 4. Bc4 {[%clk 0:03:00]}  Bc5 {[%clk 0:03:00]} 5. Ng5 {[%clk 0:03:00]}  Nh6 {[%clk 0:03:00]} 6. Nxf7 {[%clk 0:03:01]}  Nxf7 {[%clk 0:03:01]} 7. Bxf7+ {[%clk 0:03:01]}  Kxf7 {[%clk 0:03:02]} 8. Qh5+ {[%clk 0:03:01]}  g6 {[%clk 0:03:03]} 9. Qxc5 {[%clk 0:03:02]}  d5 {[%clk 0:03:03]} 10. c3 {[%clk 0:03:02]}  dxe4 {[%clk 0:02:30]} 11. O-O {[%clk 0:03:00]}  Qd6 {[%clk 0:02:19]} 12. Qxd6 {[%clk 0:02:58]}  cxd6 {[%clk 0:02:19]} 13. cxd4 {[%clk 0:02:57]}  Nxd4 {[%clk 0:02:17]} 14. Nc3 {[%clk 0:02:58]}  Nc2 {[%clk 0:02:09]} 15. Rb1 {[%clk 0:02:51]}  Bf5 {[%clk 0:02:09]} 16. Bh6 {[%clk 0:02:30]}  Nb4 {[%clk 0:01:58]} 17. Rbd1 {[%clk 0:02:24]}  Rhd8 {[%clk 0:01:34]} 18. h3 {[%clk 0:02:21]}  d5 {[%clk 0:01:30]} 19. g4 {[%clk 0:02:16]}  Be6 {[%clk 0:01:28]} 20. Nb5 {[%clk 0:02:16]}  Nd3 {[%clk 0:01:24]} 21. f3 {[%clk 0:02:14]}  Ke8 {[%clk 0:00:58]} 22. fxe4 {[%clk 0:02:02]}  dxe4 {[%clk 0:00:54]} 23. Nc7+ {[%clk 0:02:01]}  Kd7 {[%clk 0:00:53]} 24. Nxa8 {[%clk 0:01:59]}  Rxa8 {[%clk 0:00:54]} 25. Rf4 {[%clk 0:01:34]}  Bd5 {[%clk 0:00:52]} 26. Rxd3 {[%clk 0:01:28]}  exd3 {[%clk 0:00:50]} 27. Rd4 {[%clk 0:01:29]}  Ke6 {[%clk 0:00:46]} 28. b3 {[%clk 0:01:27]}  Rc8 {[%clk 0:00:41]} 29. Rxd3 {[%clk 0:01:26]}  Rc2 {[%clk 0:00:41]} 30. Rd2 {[%clk 0:01:25]}  Rc3 {[%clk 0:00:38]} 31. Kh2 {[%clk 0:01:22]}  a6 {[%clk 0:00:31]} 32. Bf4 {[%clk 0:01:20]}  Rf3 {[%clk 0:00:28]} 33. Bg3 {[%clk 0:01:17]}  Rf1 {[%clk 0:00:26]} 34. Bf2 {[%clk 0:01:15]}  Bc6 {[%clk 0:00:21]} 35. Kg3 {[%clk 0:01:11]}  Rh1 {[%clk 0:00:19]} 36. b4 {[%clk 0:01:01]}  Rb1 {[%clk 0:00:18]} 37. Bc5 {[%clk 0:01:00]}  Ke5 {[%clk 0:00:16]} 38. Bd6+ {[%clk 0:00:55]}  Ke6 {[%clk 0:00:15]} 39. Bc5 {[%clk 0:00:55]}  h5 {[%clk 0:00:15]} 40. gxh5 {[%clk 0:00:54]}  gxh5 {[%clk 0:00:16]} 41. Kh4 {[%clk 0:00:55]}  Bf3 {[%clk 0:00:15]} 42. Rf2 {[%clk 0:00:55]}  Bd1 {[%clk 0:00:11]} 43. Rf1 {[%clk 0:00:55]}  Bc2 {[%clk 0:00:08]} 44. Rxb1 {[%clk 0:00:55]}  Bxb1 {[%clk 0:00:08]} 45. a3 {[%clk 0:00:51]}  Bg6 {[%clk 0:00:08]} 46. Kg5 {[%clk 0:00:50]}  Be8 {[%clk 0:00:09]} 47. Bf2 {[%clk 0:00:49]}  Kd5 {[%clk 0:00:09]} 48. Be1 {[%clk 0:00:27]}  Kc4 {[%clk 0:00:05]} 49. b5 {[%clk 0:00:27]}  Kxb5 {[%clk 0:00:05]} 50. Kf6 {[%clk 0:00:24]}  Bd7 {[%clk 0:00:04]} 51. h4 {[%clk 0:00:19]}  a5 {[%clk 0:00:04]} 52. Kg5 {[%clk 0:00:19]}  Bg4 {[%clk 0:00:04]} 53. Kf4 {[%clk 0:00:19]}  Ka4 {[%clk 0:00:04]} 54. Bd2 {[%clk 0:00:16]}  Kxa3 {[%clk 0:00:03]} 55. Bxa5 {[%clk 0:00:16]}  b5 {[%clk 0:00:04]} 56. Ke3 {[%clk 0:00:13]}  b4 {[%clk 0:00:04]} 57. Kd2 {[%clk 0:00:14]}  Ka4 {[%clk 0:00:03]} 58. Bd8 {[%clk 0:00:14]}  Kb3 {[%clk 0:00:03]} 59. Kc1 {[%clk 0:00:14]}  Kc4 {[%clk 0:00:03]} 60. Kb2 {[%clk 0:00:14]}  Be6 {[%clk 0:00:02]} 61. Bg5 {[%clk 0:00:14]}  b3 {[%clk 0:00:03]} 62. Bf6 {[%clk 0:00:15]}  Kd3 {[%clk 0:00:04]} 63. Bg5 {[%clk 0:00:15]}  Ke4 {[%clk 0:00:04]} 64. Be7 {[%clk 0:00:16]}  Kf5 {[%clk 0:00:05]} 65. Bg5 {[%clk 0:00:17]}  Kg4 {[%clk 0:00:06]} 66. Bd8 {[%clk 0:00:17]}  Kf3 {[%clk 0:00:06]} 67. Bg5 {[%clk 0:00:18]}  Ke2 {[%clk 0:00:07]} 68. Bd8 {[%clk 0:00:19]}  Kd3 {[%clk 0:00:08]} 69. Bg5 {[%clk 0:00:19]}  Kc4 {[%clk 0:00:09]} 70. Be7 {[%clk 0:00:20]}  Kd5 {[%clk 0:00:10]} 71. Bg5 {[%clk 0:00:20]}  Ke4 {[%clk 0:00:09]} 72. Bd8 {[%clk 0:00:20]}  Kf5 {[%clk 0:00:09]} 73. Bg5 {[%clk 0:00:21]}  Bf7 {[%clk 0:00:09]} 74. Bd8 {[%clk 0:00:21]}  Ke6 {[%clk 0:00:10]} 75. Bg5 {[%clk 0:00:22]}  Kd6 {[%clk 0:00:10]} 76. Bd8 {[%clk 0:00:22]}  Ke6 {[%clk 0:00:10]} 77. Bg5 {[%clk 0:00:22]}  Kd7 {[%clk 0:00:10]} 78. Bd2 {[%clk 0:00:22]}  Kc6 {[%clk 0:00:11]} 79. Bg5 {[%clk 0:00:23]}  Kb5 {[%clk 0:00:11]} 80. Bc1 {[%clk 0:00:24]}  Be6 {[%clk 0:00:12]} 81. Bg5 {[%clk 0:00:25]}  Kc6 {[%clk 0:00:12]} 82. Bc1 {[%clk 0:00:25]}  Kd7 {[%clk 0:00:13]} 83. Bg5 {[%clk 0:00:26]}  Ke8 {[%clk 0:00:14]} 84. Bc1 {[%clk 0:00:26]}  Kf7 {[%clk 0:00:15]} 85. Bg5 {[%clk 0:00:27]}  Bd5 {[%clk 0:00:16]} 86. Bc1 {[%clk 0:00:27]}  Ke6 {[%clk 0:00:17]} 87. Bg5 {[%clk 0:00:28]}  Kf5 {[%clk 0:00:18]} 88. Bc1 {[%clk 0:00:28]}  Kg4 {[%clk 0:00:19]} 89. Bg5 {[%clk 0:00:28]}  Kh3 {[%clk 0:00:19]} 90. Bd8 {[%clk 0:00:29]}  Kg3 {[%clk 0:00:20]} 91. Bg5 {[%clk 0:00:29]}  Kf3 {[%clk 0:00:21]} 92. Bd8 {[%clk 0:00:30]}  Ke4 {[%clk 0:00:22]} 93. Bg5 {[%clk 0:00:30]}  Be6 {[%clk 0:00:23]} 1/2-1/2


[Site "https://www.chess.com"]

[Event "Titled Tuesday Blitz June 20 Late 2023"]
[White "Riehle, Marco"]
[Black "MaryanKyrychenko"]
[WhiteFideId "12904392"]
[WhiteElo "2462"]
[BlackElo "2527"]
[Result "1-0"]
[Round "2"]
[TimeControl "180+2"]
[Date "2023.06.20"]
[WhiteClock "0:00:23"]
[BlackClock "0:00:08"]
[Board "61"]

1. e4 {[%clk 0:02:59]}  c5 {[%clk 0:03:00]} 2. a3 {[%clk 0:03:00]}  g6 {[%clk 0:02:58]} 3. h4 {[%clk 0:03:00]}  h5 {[%clk 0:02:58]} 4. Nc3 {[%clk 0:03:00]}  Bg7 {[%clk 0:02:57]} 5. Bc4 {[%clk 0:03:01]}  Nc6 {[%clk 0:02:57]} 6. d3 {[%clk 0:03:01]}  e6 {[%clk 0:02:57]} 7. Bg5 {[%clk 0:03:02]}  Qc7 {[%clk 0:02:48]} 8. Qd2 {[%clk 0:03:01]}  a6 {[%clk 0:02:46]} 9. Nge2 {[%clk 0:03:01]}  b5 {[%clk 0:02:43]} 10. Bb3 {[%clk 0:03:01]}  Bb7 {[%clk 0:02:44]} 11. O-O-O {[%clk 0:03:00]}  Nge7 {[%clk 0:02:42]} 12. Kb1 {[%clk 0:02:59]}  O-O-O {[%clk 0:02:42]} 13. f3 {[%clk 0:02:52]}  Rhe8 {[%clk 0:02:38]} 14. g4 {[%clk 0:02:50]}  d5 {[%clk 0:02:30]} 15. gxh5 {[%clk 0:02:44]}  gxh5 {[%clk 0:02:29]} 16. Rhg1 {[%clk 0:02:44]}  Bh8 {[%clk 0:02:19]} 17. Ng3 {[%clk 0:02:37]}  c4 {[%clk 0:02:16]} 18. Ba2 {[%clk 0:02:36]}  Qa5 {[%clk 0:01:52]} 19. Nxh5 {[%clk 0:02:19]}  b4 {[%clk 0:01:36]} 20. axb4 {[%clk 0:02:12]}  Nxb4 {[%clk 0:01:36]} 21. Bf6 {[%clk 0:02:09]}  d4 {[%clk 0:01:28]} 22. Bxc4 {[%clk 0:02:08]}  dxc3 {[%clk 0:01:23]} 23. Qxc3 {[%clk 0:02:08]}  Qxh5 {[%clk 0:01:14]} 24. Bxh8 {[%clk 0:01:53]}  Qxh8 {[%clk 0:01:00]} 25. Qxb4 {[%clk 0:01:52]}  Nc6 {[%clk 0:00:59]} 26. Qb6 {[%clk 0:01:48]}  Qd4 {[%clk 0:00:57]} 27. Qxd4 {[%clk 0:01:44]}  Nxd4 {[%clk 0:00:57]} 28. Rg7 {[%clk 0:01:42]}  Re7 {[%clk 0:00:55]} 29. h5 {[%clk 0:01:38]}  Rh8 {[%clk 0:00:52]} 30. Rh1 {[%clk 0:01:38]}  Kd7 {[%clk 0:00:46]} 31. h6 {[%clk 0:01:36]}  f5 {[%clk 0:00:40]} 32. Rg3 {[%clk 0:01:07]}  Reh7 {[%clk 0:00:29]} 33. Rgh3 {[%clk 0:01:04]}  Ke7 {[%clk 0:00:15]} 34. c3 {[%clk 0:01:00]}  Nc6 {[%clk 0:00:15]} 35. d4 {[%clk 0:00:53]}  Na5 {[%clk 0:00:13]} 36. Bd3 {[%clk 0:00:53]}  fxe4 {[%clk 0:00:12]} 37. fxe4 {[%clk 0:00:54]}  Nc6 {[%clk 0:00:12]} 38. R1h2 {[%clk 0:00:51]}  Nd8 {[%clk 0:00:10]} 39. Kc2 {[%clk 0:00:47]}  e5 {[%clk 0:00:08]} 40. d5 {[%clk 0:00:46]}  Nf7 {[%clk 0:00:09]} 41. c4 {[%clk 0:00:46]}  Rxh6 {[%clk 0:00:08]} 42. Rxh6 {[%clk 0:00:46]}  Rxh6 {[%clk 0:00:09]} 43. Rf2 {[%clk 0:00:45]}  Rh3 {[%clk 0:00:09]} 44. c5 {[%clk 0:00:44]}  a5 {[%clk 0:00:09]} 45. Bc4 {[%clk 0:00:39]}  Re3 {[%clk 0:00:08]} 46. d6+ {[%clk 0:00:39]}  Nxd6 {[%clk 0:00:08]} 47. cxd6+ {[%clk 0:00:40]}  Kxd6 {[%clk 0:00:09]} 48. Kd2 {[%clk 0:00:34]}  Rxe4 {[%clk 0:00:09]} 49. Bd3 {[%clk 0:00:34]}  Rd4 {[%clk 0:00:10]} 50. Kc3 {[%clk 0:00:35]}  Kc5 {[%clk 0:00:10]} 51. Rf5 {[%clk 0:00:33]}  Kd6 {[%clk 0:00:09]} 52. Rf6+ {[%clk 0:00:34]}  Kc5 {[%clk 0:00:09]} 53. Re6 {[%clk 0:00:33]}  e4 {[%clk 0:00:09]} 54. Re5+ {[%clk 0:00:29]}  Bd5 {[%clk 0:00:09]} 55. Bc2 {[%clk 0:00:24]}  Kd6 {[%clk 0:00:08]} 56. Kxd4 {[%clk 0:00:23]} 1-0


[Site "https://www.chess.com"]